bitfinex/quotes_SOLUSD_20241220
["timestamp","ask_amount","ask_price","bid_price","bid_amount"]
[1734721551563,16.45289819,191.02,190.95,23.776884]
[1734721553340,16.45289819,191.04,190.96,16.45289819]
[1734721553661,16.45289819,191.02,190.95,23.776884]
[1734721554965,16.45289819,191.04,190.95,23.776884]
[1734721555145,16.45289819,191.02,190.95,23.776884]
[1734721555647,16.45289819,191.04,190.95,23.776884]
[1734721557263,16.45289819,191.04,190.96,16.45289819]
[1734721557442,16.45289819,191.04,190.97,23.776884]
[1734721559162,16.45289819,191.04,190.97,22.276884]
[1734721559362,16.45289819,191.04,190.93,14.7555]
[1734721559544,21.0299,191.08,190.94,16.45289819]
[1734721559545,16.45289819,191.02,190.94,16.45289819]
[1734721559943,16.45289819,191.02,190.93,1.6623]
[1734721560161,16.45289819,191.02,190.94,16.45289819]
[1734721565152,16.45289819,191.04,190.96,16.45289819]
[1734721566970,16.45289819,191.06,190.99,23.776884]
[1734721567174,18.09119819,191.08,190.99,23.776884]
[1734721567750,16.45289819,191.08,190.99,23.776884]
[1734721567963,16.45289819,191.08,191.01,23.776884]
[1734721569576,16.45289819,191.08,191.0,16.45289819]
[1734721570174,16.45289819,191.1,191.02,16.45289819]
[1734721570376,16.45289819,191.12,191.04,16.45289819]
[1734721570971,16.45289819,191.14,191.06,16.45289819]
[1734721572279,16.45289819,191.1,191.02,16.45289819]
[1734721573181,16.45289819,191.12,191.04,16.45289819]
[1734721574553,9.64921683,191.17,191.06,16.45289819]
[1734721574554,16.45289819,191.14,191.06,16.45289819]
[1734721574752,9.64921683,191.17,191.1,16.45289819]
[1734721574753,8.13131683,191.17,191.1,16.45289819]
[1734721574979,16.45289819,191.16,191.08,16.45289819]
[1734721575768,16.45289819,191.16,191.09,23.776884]
[1734721577192,16.45289819,191.18,191.1,16.45289819]
[1734721577491,16.45289819,191.2,191.12,16.45289819]
[1734721577781,16.45289819,191.2,191.13,23.776884]
[1734721579456,17.06606148,191.22,191.16,20.0]
[1734721579655,0.61316329,191.22,191.21,16.45289819]
[1734721579968,0.61316329,191.22,191.21,40.22978219]
[1734721583904,0.61316329,191.22,191.19,16.45289819]
[1734721584207,0.61316329,191.22,191.2,23.776884]
[1734721584375,0.61316329,191.22,191.17,31.24389819]
[1734721584583,0.61316329,191.22,191.17,16.45289819]
[1734721584902,0.61316329,191.22,191.15,16.45289819]
[1734721586297,0.61316329,191.22,191.16,23.776884]
[1734721587099,16.45289819,191.21,191.13,24.60779819]
[1734721587309,16.45289819,191.19,191.13,1.5196]
[1734721587620,16.45289819,191.18,191.1,16.45289819]
[1734721587908,16.45289819,191.17,191.09,22.80499819]
[1734721588077,16.45289819,191.18,191.1,16.45289819]
[1734721588284,16.45289819,191.18,191.11,16.45289819]
[1734721588483,16.45289819,191.19,191.11,16.45289819]
[1734721588817,16.45289819,191.19,191.12,16.45289819]
[1734721589022,16.45289819,191.21,191.14,16.45289819]
[1734721589424,17.06606148,191.22,191.14,16.45289819]
[1734721589722,17.06606148,191.22,191.15,16.45289819]
[1734721590020,0.61316329,191.22,191.15,16.45289819]
[1734721590238,17.06606148,191.22,191.15,16.45289819]
[1734721590400,17.06606148,191.22,191.14,16.45289819]
[1734721592505,16.45289819,191.21,191.14,16.45289819]
[1734721593412,17.06606148,191.22,191.14,16.45289819]
[1734721593594,16.45289819,191.2,191.13,23.776884]
[1734721594725,17.06606148,191.22,191.14,16.45289819]
[1734721595230,16.45289819,191.2,191.13,23.776884]
[1734721595826,16.45289819,191.2,191.12,16.45289819]
[1734721596029,37.06606148,191.22,191.14,16.45289819]
[1734721597227,20.61316329,191.22,191.14,16.45289819]
[1734721598832,0.61316329,191.22,191.16,16.45289819]
[1734721599000,0.61316329,191.22,191.17,23.776884]
[1734721600937,0.61316329,191.22,191.14,16.45289819]
[1734721601231,16.45289819,191.21,191.12,16.45289819]
[1734721601391,0.61316329,191.22,191.14,16.45289819]
[1734721602825,0.61316329,191.22,191.15,23.776884]
[1734721603198,11.12988463,191.22,191.15,23.776884]
[1734721606311,0.61316329,191.22,191.16,10.51672134]
[1734721607838,11.12988463,191.22,191.12,13.0803]
[1734721608023,11.12988463,191.22,191.14,23.776884]
[1734721609602,11.12988463,191.22,191.15,10.51672134]
[1734721609825,0.61316329,191.22,191.13,23.776884]
[1734721610030,0.61316329,191.22,191.15,10.51672134]
[1734721610731,11.12988463,191.22,191.15,10.51672134]
[1734721611211,11.12988463,191.22,191.13,34.29360534]
[1734721615757,11.12988463,191.22,191.16,23.776884]
[1734721616108,0.61316329,191.22,191.17,10.51672134]
[1734721616812,0.61316329,191.22,191.15,34.29360534]
[1734721617011,0.61316329,191.22,191.15,23.776884]
[1734721617449,11.12988463,191.22,191.15,23.776884]
[1734721617832,11.12988463,191.22,191.11,13.0811]
[1734721618142,11.12988463,191.22,191.12,34.29360534]
[1734721618343,11.12988463,191.22,191.14,10.51672134]
[1734721618716,11.12988463,191.22,191.15,23.776884]
[1734721620030,0.61316329,191.22,191.15,23.776884]
[1734721620633,11.12988463,191.22,191.15,23.776884]
[1734721621230,11.12988463,191.22,191.15,10.51672134]
[1734721622056,10.51672134,191.2,191.1,13.0819]
[1734721622355,10.51672134,191.18,191.11,10.51672134]
[1734721622850,10.51672134,191.17,191.1,10.51672134]
[1734721623049,10.51672134,191.18,191.1,10.51672134]
[1734721624054,10.51672134,191.16,191.08,12.09382134]
[1734721624263,10.51672134,191.15,191.08,10.51672134]
[1734721624559,10.51672134,191.1,191.02,1.5415]
[1734721624726,10.51672134,191.09,191.02,12.05822134]
[1734721625356,10.51672134,191.11,191.04,10.51672134]
[1734721626361,10.51672134,191.11,191.03,10.51672134]
[1734721626753,10.51672134,191.1,191.02,1.5415]
[1734721626951,10.51672134,191.08,191.02,1.5415]
[1734721627257,14.7134,191.14,191.0,6.4638]
[1734721627258,10.51672134,191.07,191.0,16.98052134]
[1734721627451,10.51672134,191.07,190.97,1.5591]
[1734721627642,10.51672134,191.05,190.98,10.51672134]
[1734721627841,10.51672134,191.06,190.99,10.51672134]
[1734721628451,10.51672134,191.07,190.99,10.51672134]
[1734721629034,10.51672134,191.06,190.99,10.51672134]
[1734721629243,10.51672134,191.07,191.0,10.51672134]
[1734721630060,10.51672134,191.08,191.01,10.51672134]
[1734721630559,10.51672134,191.07,191.0,10.51672134]
[1734721630856,10.51672134,191.08,191.0,10.51672134]
[1734721632157,10.51672134,191.08,191.01,10.51672134]
[1734721632537,10.51672134,191.08,191.0,10.51672134]
[1734721632827,10.51672134,191.07,191.0,10.51672134]
[1734721633360,10.51672134,191.12,191.05,10.51672134]
[1734721634260,10.51672134,191.11,191.04,10.51672134]
[1734721636167,10.51672134,191.11,191.03,10.51672134]
[1734721636372,10.51672134,191.08,190.98,23.776884]
[1734721636556,10.51672134,191.07,190.99,10.51672134]
[1734721637065,10.51672134,191.09,191.01,10.51672134]
[1734721637575,10.51672134,191.1,191.03,10.51672134]
[1734721638066,10.51672134,191.09,191.01,10.51672134]
[1734721638565,10.51672134,191.1,191.02,10.51672134]
[1734721638745,10.51672134,191.09,191.01,10.51672134]
[1734721639155,23.776884,191.13,190.99,10.51672134]
[1734721639471,10.51672134,191.06,190.98,47.38340534]
[1734721639851,10.51672134,191.06,191.0,10.51672134]
[1734721640365,10.51672134,191.11,191.04,10.51672134]
[1734721640858,10.51672134,191.11,191.02,10.51672134]
[1734721641367,10.51672134,191.09,191.01,23.776884]
[1734721641739,10.51672134,191.09,191.0,10.51672134]
[1734721644051,10.51672134,191.11,191.02,10.51672134]
[1734721644260,20.0,191.08,191.04,10.51672134]
[1734721644461,10.51672134,191.11,191.04,10.51672134]
[1734721646045,10.51672134,191.12,191.04,10.51672134]
[1734721646245,10.51672134,191.1,191.03,10.51672134]
[1734721646450,10.51672134,191.08,190.99,13.2]
[1734721646657,10.51672134,191.08,191.0,10.51672134]
[1734721646853,10.51672134,191.06,190.98,10.51672134]
[1734721647370,10.51672134,191.06,190.99,10.51672134]
[1734721647743,10.51672134,191.07,191.0,10.51672134]
[1734721648143,20.0,191.1,191.0,10.51672134]
[1734721648372,30.51672134,191.1,191.03,10.51672134]
[1734721648555,10.51672134,191.1,191.03,10.51672134]
[1734721648871,10.51672134,191.09,191.02,10.51672134]
[1734721649559,10.51672134,191.1,191.02,10.51672134]
[1734721651274,10.51672134,191.09,191.02,10.51672134]
[1734721651575,10.51672134,191.1,191.02,10.51672134]
[1734721651754,10.51672134,191.12,191.04,10.51672134]
[1734721652145,21.6334,191.14,191.04,10.51672134]
[1734721652348,10.51672134,191.12,191.04,10.51672134]
[1734721654076,44.5429,191.24,191.09,10.51672134]
[1734721654254,10.51672134,191.18,191.11,10.51672134]
[1734721654574,2.11747715,191.25,191.06,26.2848]
[1734721654575,10.51672134,191.14,191.06,23.60152134]
[1734721654755,10.51672134,191.14,191.06,10.51672134]
[1734721655370,10.51672134,191.14,191.08,10.51672134]
[1734721655574,10.51672134,191.16,191.08,10.51672134]
[1734721657079,10.51672134,191.14,191.05,20.8677]
[1734721657375,10.51672134,191.12,191.05,20.8677]
[1734721659783,10.51672134,191.14,191.06,10.51672134]
[1734721660082,10.51672134,191.16,191.08,10.51672134]
[1734721660385,6.465,191.2,191.1,10.51672134]
[1734721660386,10.51672134,191.17,191.1,10.51672134]
[1734721660763,10.51672134,191.17,191.09,10.51672134]
[1734721661288,10.51672134,191.19,191.11,10.51672134]
[1734721661497,10.51672134,191.18,191.1,10.51672134]
[1734721663071,20.0,191.21,191.12,10.51672134]
[1734721663271,10.51672134,191.21,191.12,10.51672134]
[1734721665265,10.51672134,191.2,191.12,10.51672134]
[1734721666390,10.51672134,191.19,191.12,10.51672134]
[1734721666593,10.51672134,191.2,191.12,10.51672134]
[1734721667266,10.51672134,191.2,191.13,10.51672134]
[1734721668580,10.51672134,191.21,191.13,10.51672134]
[1734721668890,10.51672134,191.2,191.13,10.51672134]
[1734721671992,0.61316329,191.22,191.15,10.51672134]
[1734721673292,11.12988463,191.22,191.15,10.51672134]
[1734721677397,0.61316329,191.22,191.15,10.51672134]
[1734721680791,11.12988463,191.22,191.15,10.51672134]
[1734721681679,10.51672134,191.2,191.12,31.96552134]
[1734721682732,10.51672134,191.2,191.12,8.2488]
[1734721683996,10.51672134,191.2,191.12,6.5981]
[1734721684203,10.51672134,191.16,191.08,10.51672134]
[1734721684368,10.51672134,191.15,191.07,25.15622134]
[1734721684695,10.51672134,191.14,191.07,25.15622134]
[1734721684895,10.51672134,191.15,191.07,25.15622134]
[1734721685696,10.51672134,191.16,191.08,10.51672134]
[1734721685897,10.51672134,191.16,191.07,14.6395]
[1734721685898,10.51672134,191.16,191.09,10.51672134]
[1734721688214,10.51672134,191.16,191.07,14.6395]
[1734721688400,10.51672134,191.14,191.07,1.5556]
[1734721688605,10.51672134,191.14,191.06,17.09032134]
[1734721688606,10.51672134,191.14,191.06,10.51672134]
[1734721688802,10.51672134,191.12,191.04,13.086]
[1734721688995,10.51672134,191.07,190.99,23.716721]
[1734721689196,10.51672134,191.05,190.99,10.516721]
[1734721689390,10.51672134,191.04,190.95,13.0923]
[1734721689713,10.51672134,191.03,190.95,10.51672134]
[1734721690016,10.51672134,191.03,190.96,10.51672134]
[1734721690254,10.51672134,191.04,190.97,10.51672134]
[1734721691315,10.51672134,191.05,190.97,10.51672134]
[1734721691699,10.51672134,191.04,190.97,10.51672134]
[1734721692994,20.0,191.03,190.98,10.51672134]
[1734721693413,10.51672134,191.08,191.0,10.51672134]
[1734721693590,10.51672134,191.08,191.01,10.51672134]
[1734721693796,10.51672134,191.07,191.0,10.51672134]
[1734721694209,10.51672134,191.07,190.99,10.51672134]
[1734721694517,10.51672134,191.07,191.0,10.51672134]
[1734721695421,10.51672134,191.07,190.99,10.51672134]
[1734721697111,10.51672134,191.09,191.01,10.51672134]
[1734721699027,10.51672134,191.07,190.98,10.51672134]
[1734721700269,20.0,191.04,190.94,1.6146]
[1734721700433,10.51672134,190.99,190.92,6.5005]
[1734721700741,10.51672134,190.97,190.89,12.07882134]
[1734721701549,10.51672134,190.99,190.91,10.51672134]
[1734721703107,16.47180296,190.99,190.91,16.47180296]
[1734721703733,16.47180296,191.01,190.93,16.47180296]
[1734721704220,16.47180296,191.01,190.94,16.47180296]
[1734721704428,20.0,191.0,190.95,16.47180296]
[1734721705228,20.0,191.0,190.94,16.47180296]
[1734721706037,16.47180296,191.01,190.94,16.47180296]
[1734721706743,16.47180296,191.0,190.92,16.47180296]
[1734721707038,16.47180296,190.98,190.91,13.2]
[1734721707227,16.47180296,190.98,190.89,1.5621]
[1734721707228,16.47180296,190.96,190.89,1.5621]
[1734721708446,16.47180296,190.98,190.91,16.47180296]
[1734721709026,16.47180296,190.98,190.9,16.47180296]
[1734721709239,16.47180296,190.97,190.89,1.5621]
[1734721709542,13.0876,191.02,190.89,1.5621]
[1734721709543,16.47180296,190.95,190.89,1.5621]
[1734721709738,16.47180296,190.96,190.89,1.5621]
[1734721711047,16.47180296,190.97,190.89,18.03390296]
[1734721711251,16.47180296,190.98,190.9,16.47180296]
[1734721712545,16.47180296,190.99,190.91,16.47180296]
[1734721712746,16.47180296,190.99,190.92,16.47180296]
[1734721713457,20.0,191.03,190.89,1.5621]
[1734721713458,16.47180296,191.0,190.93,16.47180296]
[1734721713662,36.47180296,191.02,190.95,16.47180296]
[1734721713846,16.47180296,191.01,190.93,16.47180296]
[1734721714647,16.47180296,191.0,190.93,16.47180296]
[1734721715747,16.47180296,191.01,190.93,16.47180296]
[1734721716144,16.47180296,191.03,190.96,16.47180296]
[1734721716342,16.47180296,191.04,190.96,16.47180296]
[1734721718059,16.47180296,191.04,190.97,16.47180296]
[1734721718242,20.0,191.02,190.96,16.47180296]
[1734721718435,20.0,191.02,190.96,40.24868696]
[1734721718756,20.0,191.02,190.97,16.47180296]
[1734721720651,16.47180296,191.07,190.99,16.47180296]
[1734721720863,16.47180296,191.07,191.0,16.47180296]
[1734721721463,16.47180296,191.08,191.01,16.47180296]
[1734721721637,16.47180296,191.09,191.01,16.47180296]
[1734721721833,16.47180296,191.08,191.01,16.47180296]
[1734721722559,16.47180296,191.05,190.97,14.7591]
[1734721722861,16.47180296,191.04,190.97,18.03090296]
[1734721723067,16.47180296,191.05,190.97,18.03090296]
[1734721724446,16.47180296,191.02,190.95,22.48450296]
[1734721724652,16.47180296,191.04,190.97,16.47180296]
[1734721724843,16.47180296,191.05,190.97,16.47180296]
[1734721725461,16.47180296,191.04,190.97,16.47180296]
[1734721725660,16.47180296,191.05,190.97,16.47180296]
[1734721725880,16.47180296,191.03,190.96,16.47180296]
[1734721727260,16.47180296,191.03,190.95,6.0127]
[1734721727470,36.47180296,191.05,190.97,16.47180296]
[1734721727645,20.0,191.03,190.98,16.47180296]
[1734721729571,16.47180296,191.04,190.98,16.47180296]
[1734721729770,36.47180296,191.06,190.98,16.47180296]
[1734721730271,20.0,191.06,191.0,16.47180296]
[1734721730661,20.0,191.05,191.0,16.47180296]
[1734721731671,1.5288,191.11,190.98,29.67180296]
[1734721731672,16.47180296,191.06,190.98,29.67180296]
[1734721733774,16.47180296,191.06,190.98,16.47180296]
[1734721734971,10.5350718,191.05,190.97,36.8255718]
[1734721736870,10.5350718,191.07,190.99,10.5350718]
[1734721740082,1.5288,191.11,191.03,10.5350718]
[1734721740299,10.5350718,191.12,191.03,10.5350718]
[1734721741991,10.5350718,191.12,191.05,10.5350718]
[1734721742173,10.5350718,191.14,191.05,10.5350718]
[1734721742375,20.0,191.11,191.05,10.5350718]
[1734721742705,10.5350718,191.12,191.05,10.5350718]
[1734721744726,1.5009,191.16,191.05,10.5350718]
[1734721745023,10.5350718,191.14,191.05,10.5350718]
[1734721745796,1.52,191.2,191.07,10.5350718]
[1734721745999,10.5350718,191.17,191.09,10.5350718]
[1734721746315,10.5350718,191.2,191.13,10.5350718]
[1734721747019,16.43397307,191.21,191.13,16.43397307]
[1734721747198,16.43397307,191.21,191.14,23.776884]
[1734721747403,0.61316329,191.22,191.15,16.43397307]
[1734721747729,0.61316329,191.22,191.19,16.43397307]
[1734721748089,0.61316329,191.22,191.21,16.43397307]
[1734721748295,0.61316329,191.22,191.21,40.21085707]
[1734721748985,8.17416672,191.34,191.22,23.776884]
[1734721749205,8.17416672,191.34,191.29,16.43397307]
[1734721749412,16.43397307,191.36,191.29,16.43397307]
[1734721750109,16.37094747,191.36,191.29,16.43397307]
[1734721750315,20.0,191.33,191.28,16.43397307]
[1734721750548,16.43397307,191.32,191.25,31.25457307]
[1734721750760,16.43397307,191.31,191.25,1.6206]
[1734721750911,16.43397307,191.32,191.25,18.05457307]
[1734721751118,16.43397307,191.33,191.25,18.05457307]
[1734721752259,16.43397307,191.33,191.26,16.43397307]
[1734721752552,16.43397307,191.29,191.2,1.5487]
[1734721752731,16.43397307,191.28,191.2,17.98267307]
[1734721752927,16.43397307,191.3,191.22,16.43397307]
[1734721753122,16.43397307,191.29,191.22,16.43397307]
[1734721753344,16.43397307,191.28,191.21,16.43397307]
[1734721754047,16.43397307,191.29,191.22,16.43397307]
[1734721754416,16.43397307,191.31,191.23,16.43397307]
[1734721754625,16.43397307,191.3,191.23,16.43397307]
[1734721755540,16.43397307,191.31,191.23,16.43397307]
[1734721756112,16.43397307,191.33,191.25,16.43397307]
[1734721758543,16.43397307,191.31,191.23,16.43397307]
[1734721758847,16.43397307,191.31,191.22,16.43397307]
[1734721760448,16.43397307,191.31,191.24,16.43397307]
[1734721761960,16.43397307,191.33,191.24,16.43397307]
[1734721762126,20.0,191.3,191.24,16.43397307]
[1734721762652,16.43397307,191.33,191.24,16.43397307]
[1734721762836,16.43397307,191.33,191.26,16.43397307]
[1734721764639,20.0,191.3,191.22,16.43397307]
[1734721764957,16.43397307,191.29,191.22,16.43397307]
[1734721765336,16.43397307,191.33,191.24,16.43397307]
[1734721765543,20.0,191.3,191.24,16.43397307]
[1734721765751,16.43397307,191.33,191.26,16.43397307]
[1734721766266,20.0,191.34,191.26,16.43397307]
[1734721766453,20.0,191.32,191.26,16.43397307]
[1734721767362,16.43397307,191.35,191.28,16.43397307]
[1734721768654,16.43397307,191.35,191.27,16.43397307]
[1734721768856,16.43397307,191.35,191.27,22.58017307]
[1734721769205,20.0,191.33,191.28,17.95937307]
[1734721769649,20.0,191.33,191.28,1.5254]
[1734721770288,20.0,191.33,191.27,22.58017307]
[1734721770474,36.43397307,191.33,191.26,16.43397307]
[1734721770648,16.43397307,191.35,191.28,16.43397307]
[1734721770849,36.43397307,191.36,191.28,16.43397307]
[1734721771267,16.43397307,191.35,191.27,16.43397307]
[1734721771446,16.43397307,191.35,191.28,16.43397307]
[1734721775888,20.0,191.36,191.28,16.43397307]
[1734721776082,0.6761625,191.41,191.34,16.43397307]
[1734721776276,0.6761625,191.41,191.36,16.43397307]
[1734721777377,0.6761625,191.41,191.38,16.43397307]
[1734721778794,0.6761625,191.41,191.4,16.43397307]
[1734721780191,0.6761625,191.41,191.39,16.43397307]
[1734721780391,0.6761625,191.41,191.38,40.21085707]
[1734721780588,0.6761625,191.41,191.39,16.43397307]
[1734721781590,0.6761625,191.41,191.4,40.21085707]
[1734721782397,0.6761625,191.41,191.4,56.64483014]
[1734721782573,0.6761625,191.41,191.4,40.21085707]
[1734721783472,0.6761625,191.41,191.4,53.27245707]
[1734721783991,0.6761625,191.41,191.4,66.47245707]
[1734721787473,0.6761625,191.41,191.4,82.90643014]
[1734721787881,0.6761625,191.41,191.4,50.038484]
[1734721788183,0.6761625,191.41,191.4,66.47245707]
[1734721788499,0.6761625,191.41,191.4,53.41085707]
[1734721792097,0.6761625,191.41,191.4,54.19426117]
[1734721792402,0.6761625,191.41,191.4,70.62823424]
[1734721794702,0.6761625,191.41,191.4,54.19426117]
[1734721795004,0.6761625,191.41,191.4,70.62823424]
[1734721795305,0.6761625,191.41,191.4,54.19426117]
[1734721795905,0.6761625,191.41,191.4,70.62823424]
[1734721797273,11.433425,191.53,191.48,16.43397307]
[1734721797797,11.433425,191.53,191.49,16.43397307]
[1734721797986,11.433425,191.53,191.5,16.43397307]
[1734721798374,11.433425,191.53,191.52,16.43397307]
[1734721799212,11.433425,191.53,191.52,40.21085707]
[1734721800406,11.433425,191.53,191.52,53.41085707]
[1734721803404,11.433425,191.53,191.52,40.21085707]
[1734721803704,11.433425,191.53,191.5,16.43397307]
[1734721803901,11.433425,191.53,191.52,16.43397307]
[1734721804481,11.433425,191.53,191.41,26.2607]
[1734721804690,11.433425,191.53,191.47,16.43397307]
[1734721805012,11.433425,191.53,191.49,16.43397307]
[1734721807114,11.433425,191.53,191.51,16.43397307]
[1734721807707,11.433425,191.53,191.47,16.43397307]
[1734721808107,11.433425,191.53,191.49,16.43397307]
[1734721808907,16.43397307,191.56,191.49,16.43397307]
[1734721810918,20.0,191.54,191.5,16.43397307]
[1734721811115,6.4624,191.59,191.52,16.43397307]
[1734721811327,36.43397307,191.56,191.49,16.43397307]
[1734721811532,36.43397307,191.56,191.48,16.43397307]
[1734721813216,16.43397307,191.55,191.48,16.43397307]
[1734721813721,16.43397307,191.55,191.46,16.43397307]
[1734721813921,16.43397307,191.55,191.47,16.43397307]
[1734721814123,16.43397307,191.55,191.48,16.43397307]
[1734721814503,36.43397307,191.56,191.48,16.43397307]
[1734721815233,16.43397307,191.55,191.48,16.43397307]
[1734721816838,16.43397307,191.55,191.46,16.43397307]
[1734721817194,16.43397307,191.53,191.46,16.43397307]
[1734721819124,1.5771,191.54,191.46,16.43397307]
[1734721819303,21.5771,191.54,191.48,16.43397307]
[1734721820019,21.5771,191.54,191.47,16.43397307]
[1734721820223,21.5771,191.54,191.48,16.43397307]
[1734721820419,21.5771,191.54,191.47,16.43397307]
[1734721820738,1.5771,191.54,191.47,16.43397307]
[1734721820905,16.43397307,191.53,191.45,16.43397307]
[1734721821300,16.43397307,191.52,191.45,16.43397307]
[1734721822024,36.43397307,191.53,191.45,16.43397307]
[1734721822212,20.0,191.51,191.47,16.43397307]
[1734721823316,1.5771,191.54,191.47,16.43397307]
[1734721823523,18.01107307,191.54,191.46,16.43397307]
[1734721823830,20.0,191.52,191.47,16.43397307]
[1734721824026,20.0,191.52,191.46,16.43397307]
[1734721828338,36.43397307,191.52,191.44,16.43397307]
[1734721829033,36.43397307,191.52,191.46,16.43397307]
[1734721831049,38.01107307,191.54,191.46,16.43397307]
[1734721831840,0.6761625,191.6,191.5,16.43397307]
[1734721832046,16.43397307,191.59,191.51,16.43397307]
[1734721832632,16.43397307,191.59,191.52,16.43397307]
[1734721832942,0.6761625,191.6,191.58,29.63397307]
[1734721833120,0.6761625,191.6,191.59,32.27962187]
[1734721833317,8.17416672,191.66,191.59,7.7201]
[1734721833521,8.17416672,191.66,191.57,22.34475169]
[1734721833522,16.43397307,191.64,191.57,16.43397307]
[1734721834448,16.43397307,191.66,191.57,16.43397307]
[1734721837344,16.43397307,191.66,191.59,16.43397307]
[1734721838043,16.43397307,191.68,191.59,16.43397307]
[1734721838753,16.43397307,191.66,191.57,16.43397307]
[1734721839847,16.43397307,191.64,191.55,37.35407307]
[1734721840150,16.43397307,191.64,191.55,29.63397307]
[1734721840856,16.43397307,191.62,191.55,16.43397307]
[1734721841156,16.43397307,191.62,191.54,16.43397307]
[1734721842468,16.43397307,191.64,191.56,16.43397307]
[1734721842970,16.43397307,191.59,191.5,21.2194]
[1734721843130,16.43397307,191.57,191.5,16.43397307]
[1734721843446,21.5743,191.61,191.45,8.6418329]
[1734721843447,16.43397307,191.55,191.47,16.43397307]
[1734721843652,16.43397307,191.56,191.49,16.43397307]
[1734721845039,16.43397307,191.56,191.48,16.43397307]
[1734721845452,16.43397307,191.56,191.49,16.43397307]
[1734721845756,36.43397307,191.56,191.48,16.43397307]
[1734721847068,36.43397307,191.56,191.49,16.43397307]
[1734721849940,36.43397307,191.56,191.47,16.43397307]
[1734721851362,36.43397307,191.56,191.49,16.43397307]
[1734721852048,20.0,191.57,191.51,16.43397307]
[1734721852362,20.0,191.55,191.51,16.43397307]
[1734721853359,20.0,191.55,191.49,16.43397307]
[1734721855982,16.43397307,191.58,191.51,16.43397307]
[1734721856146,16.43397307,191.6,191.51,16.43397307]
[1734721857066,16.43397307,191.6,191.53,16.43397307]
[1734721857273,16.43397307,191.62,191.53,16.43397307]
[1734721857449,16.43397307,191.62,191.55,16.43397307]
[1734721858170,16.43397307,191.62,191.6,25.0]
[1734721858653,16.43397307,191.64,191.6,25.0]
[1734721862269,20.0,191.61,191.6,25.0]
[1734721862470,75.156884,191.6,191.44,24.5635742]
[1734721862767,16.43397307,191.53,191.44,24.5635742]
[1734721863359,16.43397307,191.55,191.46,16.43397307]
[1734721863557,16.43397307,191.55,191.48,16.43397307]
[1734721863952,16.43397307,191.57,191.48,16.43397307]
[1734721867481,11.433425,191.53,191.48,16.43397307]
[1734721869487,11.433425,191.53,191.52,36.43397307]
[1734721869677,11.433425,191.53,191.52,38.07867307]
[1734721869983,11.433425,191.53,191.52,61.85555707]
[1734721874091,11.433425,191.53,191.52,41.85555707]
[1734721874391,11.433425,191.53,191.52,18.07867307]
[1734721874892,11.433425,191.53,191.48,29.63397307]
[1734721877598,11.433425,191.53,191.47,1.6081]
[1734721877793,27.86739807,191.53,191.46,16.43397307]
[1734721878001,16.43397307,191.53,191.44,16.43397307]
[1734721878705,16.43397307,191.51,191.44,16.43397307]
[1734721879170,16.43397307,191.49,191.43,8.1798]
[1734721879370,16.43397307,191.49,191.43,1.657]
[1734721880205,16.43397307,191.5,191.43,18.09097307]
[1734721880699,16.43397307,191.5,191.43,1.657]
[1734721880905,16.43397307,191.49,191.43,1.657]
[1734721881400,16.43397307,191.5,191.43,1.657]
[1734721881607,16.43397307,191.5,191.43,18.09097307]
[1734721881783,16.43397307,191.5,191.4,13.0616]
[1734721881784,16.43397307,191.49,191.42,16.43397307]
[1734721882785,16.43397307,191.5,191.42,16.43397307]
[1734721883902,16.43397307,191.49,191.42,16.43397307]
[1734721884904,16.43397307,191.43,191.33,1.6281]
[1734721885103,16.43397307,191.39,191.33,1.6281]
[1734721886999,16.43397307,191.43,191.35,16.43397307]
[1734721887202,16.43397307,191.45,191.37,16.43397307]
[1734721888933,16.43397307,191.43,191.35,16.43397307]
[1734721893314,16.43397307,191.41,191.34,23.776884]
[1734721893630,16.43397307,191.39,191.33,1.6281]
[1734721894404,16.43397307,191.37,191.33,1.6281]
[1734721894811,16.43397307,191.37,191.29,16.43397307]
[1734721895431,6.4354,191.41,191.28,6.6644]
[1734721895432,16.43397307,191.35,191.28,6.6644]
[1734721896230,16.43397307,191.33,191.27,1.5376]
[1734721896921,16.43397307,191.29,191.22,1.5376]
[1734721898336,16.43397307,191.27,191.22,1.5376]
[1734721898634,16.43397307,191.27,191.18,22.92927307]
[1734721900130,20.0,191.28,191.2,16.43397307]
[1734721900313,36.43397307,191.33,191.24,16.43397307]
[1734721900513,16.43397307,191.31,191.24,16.43397307]
[1734721903361,16.43397307,191.33,191.24,16.43397307]
[1734721903533,16.43397307,191.33,191.26,16.43397307]
[1734721904364,16.43397307,191.29,191.22,16.43397307]
[1734721904528,16.43397307,191.29,191.19,23.776884]
[1734721904728,16.43397307,191.29,191.22,16.43397307]
[1734721904943,16.43397307,191.33,191.24,16.43397307]
[1734721907243,16.43397307,191.31,191.24,16.43397307]
[1734721907551,16.43397307,191.29,191.22,16.43397307]
[1734721909836,20.0,191.33,191.24,16.43397307]